{"text_format":"1","workbook":"xlsx","n_sheets":3,"sheets":["Данные","temp","data"],"not_rendered":{"charts":0,"images":0,"macros":1,"external_links":0,"defined_names":0,"comments":0,"pivot_tables":0},"unopened":[],"bounds":{"document_bytes":16777216,"sheet_cells":100000,"rows_first":2000,"rows_last":500,"rows_between":2000,"halvings":0,"cell_chars":16384,"cell_head_chars":4096},"cells_cut":0,"cells_raw":0,"read":"whole","date_system":"1900"}

{"sheet":"Данные","index":0,"n_rows":12,"n_cols":6,"rows_kept":12,"cut":false,"hidden":false,"merged":[]}
["№ п/п","Наименование объекта","Адрес",null,"Тип карты:",2]
[0,"Объект Оценки","Московская область, Сергиево-Посадский район, сп Селковское",null,"Ширина карты:",600]
[1,{"$f":"CONCATENATE(\"Объект-аналог №\",A3)","v":"Объект-аналог №1"},"Московская область, Шаховская городской округ, д. Панюково",null,"Высота карты:",402]
[2,{"$f":"CONCATENATE(\"Объект-аналог №\",A4)","v":"Объект-аналог №2"},"Московская область, Сергиево-Посадский район, д. Редриковы Горы",null,"Масштаб:","Авто"]
[3,"Объект-аналог №3","Владимирская область, Петушинский район, Покров"]
[4,"Объект-аналог №4","Московская область, Серпуховский район, д. Тульчино"]
[5,"Объект-аналог №5","Московская область, Клинский район, д. Соголево"]
[6,"Объект-аналог №6"]
[7,"Объект-аналог №7"]
[8,"Объект-аналог №8"]
[9,"Объект-аналог №9"]
[10,"Объект-аналог №10"]

{"sheet":"temp","index":1,"n_rows":0,"n_cols":0,"rows_kept":0,"cut":false,"hidden":true,"merged":[]}

{"sheet":"data","index":2,"n_rows":18,"n_cols":12,"rows_kept":18,"cut":false,"hidden":true,"merged":[]}
[{"$f":"Данные!A1","v":"№ п/п"},{"$f":"Данные!B1","v":"Наименование объекта"},{"$f":"Данные!C1","v":"Адрес"},{"$f":"ROUND(AVERAGE(D2:D12),6)","v":{"$error":"#DIV/0!"}},{"$f":"ROUND(AVERAGE(E2:E12),6)","v":{"$error":"#DIV/0!"}},null,{"$f":"CONCATENATE(SUBSTITUTE(D1,\",\",\".\"),\",\",SUBSTITUTE(E1,\",\",\".\"))","v":{"$error":"#DIV/0!"}},"Тип Карты",{"$f":"CONCATENATE(\"&l=\",INDEX(H2:I4,Данные!F1,2))","v":"&l=map"},"Масштаб","Размер","Итоговая Ссылка"]
[0,"Объект Оценки","Московская область, Сергиево-Посадский район, сп Селковское",null,null,{"$f":"IF(ISBLANK(C2),\"\",CONCATENATE(\",pm2rdl\",IF(C3>0,\"~\",\"\")))","v":",pm2rdl~"},{"$f":"IF(ISBLANK(C2),\"\",CONCATENATE(SUBSTITUTE(D2,\",\",\".\"),\",\",SUBSTITUTE(E2,\",\",\".\"),F2))","v":",,pm2rdl~"},"гибрид","sat,skl",{"$f":"IF(Данные!F4=\"авто\",\"\",CONCATENATE(\"&z=\",Данные!F4))","v":""},{"$f":"CONCATENATE(\"&size=\",Данные!F2,\",\",Данные!F3)","v":"&size=600,402"},{"$f":"CONCATENATE(\"https://static-maps.yandex.ru/1.x/?ll=\",G1,K2,J2,I1,\"&pt=\",G2,G3,G4,G5,G6,G7,G8,G9,G10,G11,G12)","v":{"$error":"#DIV/0!"}}]
[1,"Объект-аналог №1","Московская область, Шаховская городской округ, д. Панюково",null,null,{"$f":"IF(ISBLANK(C3),\"\",CONCATENATE(\",pm2lbl\",A3,IF(C4>0,\"~\",\"\")))","v":",pm2lbl1~"},{"$f":"IF(ISBLANK(C3),\"\",CONCATENATE(SUBSTITUTE(D3,\",\",\".\"),\",\",SUBSTITUTE(E3,\",\",\".\"),F3))","v":",,pm2lbl1~"},"классическая карта","map"]
[2,"Объект-аналог №2","Московская область, Сергиево-Посадский район, д. Редриковы Горы",null,null,{"$f":"IF(ISBLANK(C4),\"\",CONCATENATE(\",pm2lbl\",A4,IF(C5>0,\"~\",\"\")))","v":",pm2lbl2~"},{"$f":"IF(ISBLANK(C4),\"\",CONCATENATE(SUBSTITUTE(D4,\",\",\".\"),\",\",SUBSTITUTE(E4,\",\",\".\"),F4))","v":",,pm2lbl2~"},"спутник","sat"]
[3,"Объект-аналог №3","Владимирская область, Петушинский район, Покров",null,null,",pm2lbl3~",{"$f":"IF(ISBLANK(C5),\"\",CONCATENATE(SUBSTITUTE(D5,\",\",\".\"),\",\",SUBSTITUTE(E5,\",\",\".\"),F5))","v":",,pm2lbl3~"}]
[4,"Объект-аналог №4","Московская область, Серпуховский район, д. Тульчино",null,null,",pm2lbl4~",",,pm2lbl4~"]
[5,"Объект-аналог №5","Московская область, Клинский район, д. Соголево",null,null,",pm2lbl5",",,pm2lbl5"]
[6,"Объект-аналог №6",null,null,null,"",""]
[7,"Объект-аналог №7",null,null,null,"",""]
[8,"Объект-аналог №8",null,null,null,"",""]
[9,"Объект-аналог №9",null,null,null,"",""]
[10,"Объект-аналог №10",null,null,null,"",""]
[]
[]
[]
["https://static-maps.yandex.ru/1.x/?ll=52.39582,55.743553&size=600,450&z=12&l=map&pt=52.39582,55.743553,pm2rdl~52.352279,55.703459,pm2lbl1~52.421548,55.734993,pm2lbl2"]
[]
["https://geocode-maps.yandex.ru/1.x/?geocode=Московская область, Сергиево-Посадский район, сп Селковское&ll=49.106324,55.801452&results=1"]